bitfinex-derivatives/quotes_ETHF0:USTF0_20260121
["timestamp","ask_amount","ask_price","bid_price","bid_amount"]
[1769023176291,3.48620458,2932.4,2930.2,3.92131325]
[1769023176493,3.48620458,2932.4,2930.4,3.75054325]
[1769023176998,0.17066,2932.3,2930.4,3.75054325]
[1769023179499,0.17066,2932.3,2930.6,3.75054325]
[1769023179696,3.48620458,2932.9,2930.8,3.75054325]
[1769023179896,0.17063,2932.7,2930.8,3.75054325]
[1769023180191,0.17064,2932.6,2930.8,3.75054325]
[1769023180393,3.48620458,2932.7,2930.8,3.75054325]
[1769023180394,0.17065,2932.4,2930.8,3.75054325]
[1769023181495,0.17062,2932.9,2930.8,3.75054325]
[1769023181694,3.65682458,2932.9,2930.8,3.75054325]
[1769023182393,0.00302175,2933.2,2931.0,3.75054325]
[1769023182589,3.48922633,2933.2,2931.3,3.92125325]
[1769023182795,3.48620458,2932.9,2931.3,3.75054325]
[1769023184090,3.48620458,2932.9,2930.8,3.92128325]
[1769023184295,3.48620458,2932.5,2930.8,3.75054325]
[1769023187800,3.65684458,2932.5,2930.8,3.75054325]
[1769023191207,0.99874925,2932.4,2930.8,3.75054325]
[1769023191407,3.65684458,2932.5,2930.8,3.75054325]
[1769023191600,0.99874925,2932.4,2930.8,3.75054325]
[1769023191802,3.65684458,2932.5,2930.8,3.75054325]
[1769023191998,0.99581154,2932.4,2930.8,3.75054325]
[1769023192200,3.65684458,2932.5,2930.8,3.75054325]
[1769023192403,0.99596121,2932.4,2930.8,3.75054325]
[1769023192608,3.65684458,2932.5,2930.8,3.75054325]
[1769023192805,0.99596121,2932.4,2930.8,3.75054325]
[1769023193109,3.65684458,2932.5,2930.8,3.75054325]
[1769023193410,3.72853796,2932.3,2930.5,0.17076]
[1769023193613,4.89526607,2932.2,2930.5,3.82928997]
[1769023193812,0.17066,2932.2,2930.5,3.82928997]
[1769023194713,0.99606108,2932.1,2930.5,3.82928997]
[1769023195009,4.89527802,2932.0,2930.5,3.65852997]
[1769023195214,3.89922796,2931.8,2930.1,3.65852997]
[1769023195413,0.17069,2931.8,2930.1,3.82930997]
[1769023197214,0.99627513,2931.7,2930.1,3.82930997]
[1769023197404,3.89922796,2931.8,2930.1,3.82930997]
[1769023197609,0.99636508,2931.7,2930.1,3.82930997]
[1769023197804,3.89922796,2931.8,2930.1,3.82930997]
[1769023198013,0.99633874,2931.7,2930.1,3.82930997]
[1769023198213,0.17069,2931.8,2930.1,3.82930997]
[1769023198516,0.17069,2931.8,2930.1,6.20130997]
[1769023198716,0.17069,2931.8,2930.2,3.65852997]
[1769023199515,5.74584646,2932.4,2930.4,3.72769583]
[1769023199811,0.99655591,2932.3,2930.4,3.72769583]
[1769023200009,0.99655591,2932.2,2930.4,3.72769583]
[1769023200212,0.99655591,2932.1,2930.4,3.72769583]
[1769023200407,0.99655591,2932.0,2930.4,3.72769583]
[1769023200611,0.17066,2932.3,2930.4,3.72769583]
[1769023200818,0.99653882,2932.2,2930.4,3.72769583]
[1769023201017,0.99653882,2932.2,2930.0,3.62]
[1769023201018,0.99653882,2932.1,2930.7,3.72769583]
[1769023201214,0.17066,2932.3,2930.7,3.72769583]
[1769023201414,5.75364231,2932.8,2930.7,3.72769583]
[1769023201611,1.15184223,2932.7,2930.7,3.72769583]
[1769023201813,0.15538133,2932.6,2930.7,3.72769583]
[1769023202013,0.9964609,2932.5,2931.0,3.72769583]
[1769023202208,0.99640627,2932.4,2930.8,3.72769583]
[1769023202409,0.00302175,2933.2,2931.2,3.89841583]
[1769023202615,0.99630232,2933.1,2931.6,3.89838583]
[1769023202920,0.00302175,2933.2,2931.6,3.89838583]
[1769023203418,0.00302175,2933.2,2931.8,3.89837583]
[1769023203619,0.00302175,2933.2,2931.8,3.90124078]
[1769023204017,0.17055,2934.1,2932.1,3.72769583]
[1769023204210,3.90692381,2933.7,2931.8,3.73056078]
[1769023204421,0.99409181,2933.6,2931.8,3.73056078]
[1769023204916,3.73635381,2933.2,2931.8,0.00286495]
[1769023205108,0.99681772,2933.6,2931.8,0.00286495]
[1769023205109,3.90697381,2933.0,2931.8,0.00286495]
[1769023205312,4.73044562,2932.9,2931.8,0.00286495]
[1769023205710,0.99409181,2932.8,2931.8,0.00286495]
[1769023205925,3.73635381,2932.7,2931.8,0.00286495]
[1769023206220,0.99409181,2932.6,2931.8,0.00286495]
[1769023206521,3.90700381,2932.4,2930.1,3.72769583]
[1769023206718,3.73635381,2932.2,2930.4,3.632]
[1769023206914,3.73635381,2932.2,2930.2,3.72769583]
[1769023207123,3.73635381,2932.0,2930.2,3.72769583]
[1769023207314,4.73085846,2931.9,2930.2,3.72769583]
[1769023207621,0.99450465,2931.8,2930.2,3.73077449]
[1769023208017,3.73635381,2931.9,2930.2,3.73077449]
[1769023208217,5.57234262,2932.4,2930.2,3.73077449]
[1769023208417,3.73635381,2932.2,2930.2,3.73077449]
[1769023208618,0.17067,2932.0,2930.2,3.73077449]
[1769023208914,3.90698381,2932.7,2930.2,3.90154449]
[1769023209113,0.99424451,2932.6,2930.7,3.89844583]
[1769023209316,3.73635381,2933.2,2930.9,3.72769583]
[1769023209517,0.99415319,2933.1,2931.1,3.72769583]
[1769023209820,0.99415319,2933.0,2931.2,3.72769583]
[1769023210020,3.73635381,2933.2,2931.2,3.72769583]
[1769023210320,0.99408534,2933.1,2931.2,3.72769583]
[1769023210513,3.73635381,2933.2,2931.2,3.72769583]
[1769023210713,0.99394316,2933.1,2931.2,3.72769583]
[1769023210916,3.90696381,2933.2,2931.2,3.72769583]
[1769023211324,0.17061,2933.2,2931.2,3.72769583]
[1769023211623,0.00272591,2933.6,2931.6,3.89838583]
[1769023211820,0.00272591,2933.6,2931.1,2.281]
[1769023211821,0.00272591,2933.6,2931.8,3.89837583]
[1769023212018,0.00272591,2933.6,2932.0,3.72769583]
[1769023212216,0.00272591,2933.6,2932.4,3.72769583]
[1769023212418,0.00272591,2933.6,2932.4,3.73080512]
[1769023212822,0.17053,2934.5,2932.6,3.72769583]
[1769023214024,0.17393145,2934.5,2932.6,3.72769583]
[1769023214220,3.91028526,2934.5,2932.6,3.72769583]
[1769023214424,3.91028526,2934.5,2932.7,3.081]
[1769023214624,3.91028526,2934.5,2932.6,3.72769583]
[1769023215928,3.67871881,2934.3,2932.4,0.00310929]
[1769023216123,3.67872881,2934.2,2932.4,0.00310929]
[1769023216523,3.67872881,2934.1,2932.4,0.00310929]
[1769023216823,3.50817881,2934.0,2932.4,0.00310929]
[1769023217025,3.50817881,2933.6,2932.4,0.00310929]
[1769023217727,3.67876881,2933.4,2932.4,0.00310929]
[1769023218028,1.896,2934.0,2931.3,2.06671]
[1769023218029,3.67877881,2933.3,2931.3,2.06671]
[1769023218221,3.67877881,2933.3,2931.4,3.73843638]
[1769023218421,0.1706,2933.3,2931.4,3.73843638]
[1769023219018,0.1706,2933.3,2931.4,3.74197353]
[1769023219219,0.1706,2933.3,2931.5,3.641]
[1769023219423,0.1706,2933.3,2931.5,7.37943638]
[1769023220126,0.1706,2933.3,2931.6,3.73843638]
[1769023221232,3.50817881,2933.8,2931.6,3.90912638]
[1769023221529,3.50817881,2933.8,2931.8,3.73843638]
[1769023222933,3.67874881,2933.8,2931.9,7.37843638]
[1769023223326,3.67874881,2933.8,2932.0,3.73843638]
[1769023224227,3.67874881,2933.8,2932.1,3.73843638]
[1769023227334,3.67871881,2934.3,2932.1,3.90909638]
[1769023227530,3.67871881,2934.3,2932.3,3.73843638]
[1769023227835,3.67871881,2934.3,2932.3,3.90908638]
[1769023229034,3.67871881,2934.3,2932.5,3.90907638]
[1769023229234,0.17054,2934.3,2932.5,3.90907638]
[1769023230531,0.17055,2934.2,2932.5,3.90907638]
[1769023230837,3.50817881,2934.0,2932.1,1.896]
[1769023231137,3.50817881,2934.0,2932.2,3.90909638]
[1769023231736,0.17055,2934.1,2932.2,3.90909638]
[1769023231936,0.17055,2934.1,2932.4,3.90908638]
[1769023232537,0.17055,2934.1,2932.5,3.64]
[1769023232839,0.17055,2934.1,2932.4,3.90908638]
[1769023235646,3.67873881,2933.9,2931.9,7.37843638]
[1769023236141,3.67873881,2933.9,2932.0,3.73843638]
[1769023236533,3.67873881,2933.9,2932.0,3.90910638]
[1769023237339,3.67873881,2933.9,2932.1,3.73843638]
[1769023241346,0.17056,2933.9,2932.1,3.90910638]
[1769023241847,3.50817881,2934.4,2932.3,3.90908638]
[1769023242441,0.00340145,2934.5,2932.8,3.73843638]
[1769023242642,0.00340145,2934.5,2933.0,3.90904638]
[1769023243449,0.00340145,2934.5,2933.2,3.73843638]
[1769023244340,0.00340145,2934.5,2933.2,7.56203638]
[1769023244737,0.17047,2935.6,2933.5,3.90901638]
[1769023245749,0.17298604,2935.6,2933.5,3.91265105]
[1769023248052,3.57709946,2935.5,2933.6,3.656]
[1769023248245,3.40662946,2935.2,2933.5,3.74207105]
[1769023248445,3.40662946,2934.7,2933.5,0.00363467]
[1769023248751,3.57714946,2934.7,2933.5,0.00363467]
[1769023250451,3.40662946,2934.2,2932.0,3.41845267]
[1769023250655,0.17057,2933.8,2932.0,3.41845267]
[1769023251455,0.17057,2933.8,2932.0,3.42156824]
[1769023252053,3.57719946,2933.8,2932.0,3.42156824]
[1769023252358,3.57720946,2933.6,2932.0,0.00311557]
[1769023253259,3.40662946,2933.4,2932.0,0.00311557]
[1769023253464,3.40662946,2933.1,2932.0,0.00311557]
[1769023253857,3.57723946,2933.1,2932.0,0.00311557]
[1769023254058,3.40662946,2932.6,2931.0,3.41845267]
[1769023254259,3.57727946,2932.5,2930.5,3.41845267]
[1769023254964,3.57727946,2932.5,2930.5,3.4213412]
[1769023255960,3.40662946,2933.0,2930.5,3.4213412]
[1769023256157,0.00351925,2933.4,2931.3,3.41845267]
[1769023256358,3.85511231,2933.4,2931.3,3.58916267]
[1769023256559,3.58073871,2933.4,2931.3,3.58916267]
[1769023257366,3.58073871,2933.4,2930.5,0.00288853]
[1769023257367,0.17410925,2933.4,2931.5,3.41845267]
[1769023257969,0.00351925,2933.4,2931.7,3.41845267]
[1769023259775,0.00351925,2933.4,2931.7,3.58914267]
[1769023259975,0.00351925,2933.4,2931.9,3.74262402]
[1769023260274,0.00351925,2933.4,2931.9,3.91330402]
[1769023260873,0.00351925,2933.4,2932.1,3.74262402]
[1769023261078,0.00351925,2933.4,2932.3,3.74262402]
[1769023261879,0.00351925,2933.4,2931.8,3.74262402]
[1769023262082,3.50994617,2933.4,2931.2,3.74262402]
[1769023262273,3.67704692,2932.9,2930.6,3.74262402]
[1769023262475,3.50642692,2932.7,2930.7,3.74262402]
[1769023263679,3.50642692,2932.7,2930.9,3.74262402]
[1769023263980,3.50642692,2933.3,2931.4,3.91333402]
[1769023264483,0.00351925,2933.4,2931.6,3.91331402]
[1769023264778,0.00351925,2933.4,2932.1,3.74262402]
[1769023264977,0.00351925,2933.4,2932.3,3.74262402]
[1769023265676,0.17051,2934.9,2932.5,3.74262402]
[1769023265870,3.50642692,2934.8,2932.5,3.91326402]
[1769023266179,0.17051,2934.9,2931.9,3.67]
[1769023266180,0.17051,2934.9,2932.9,3.74262402]
[1769023266385,0.17051,2934.9,2932.9,3.91324402]
[1769023266683,0.17348058,2934.9,2932.9,3.9168333]
[1769023266978,0.00297058,2934.9,2933.1,3.74262402]
[1769023267184,3.6799075,2934.9,2933.1,3.74262402]
[1769023267380,3.6799075,2934.9,2932.9,0.00358928]
[1769023268075,3.50642692,2934.7,2932.9,0.00358928]
[1769023268277,3.67696692,2934.3,2932.9,0.00358928]
[1769023268784,3.50642692,2934.1,2932.9,0.00358928]
[1769023270080,3.50642692,2934.1,2931.8,0.17068]
[1769023271181,3.50642692,2934.1,2931.8,0.17408164]
[1769023271575,0.17057,2933.8,2931.8,0.17408164]
[1769023271780,3.50642692,2933.6,2931.8,0.00340164]
[1769023272082,3.50642692,2933.2,2931.8,0.00340164]
[1769023273580,3.50642692,2933.7,2931.8,3.74602566]
[1769023273786,3.50642692,2933.5,2931.8,0.00340164]
[1769023274390,3.50642692,2933.3,2931.8,0.00340164]
[1769023274887,3.67702692,2933.3,2931.8,0.00340164]
[1769023275280,3.67703692,2933.1,2931.8,0.00340164]
[1769023275479,3.87859825,2932.8,2930.8,3.74262402]
[1769023276188,3.06812268,2934.8,2930.3,3.64082666]
[1769023276189,3.87861825,2932.4,2930.3,3.64082666]
[1769023276577,3.88267046,2932.4,2930.3,3.64448298]
[1769023277185,0.00405221,2932.4,2930.8,3.64082666]
[1769023277379,3.71202046,2932.4,2930.7,0.17075]
[1769023278881,3.87862825,2932.3,2930.7,3.64082666]
[1769023279091,3.87862825,2932.3,2930.3,0.00365632]
[1769023279487,3.87862825,2932.2,2930.3,0.00365632]
[1769023280285,3.70796825,2932.1,2930.3,0.00365632]
[1769023280492,3.70796825,2931.8,2930.3,0.00365632]
[1769023281487,0.00405221,2932.4,2930.3,0.00365632]
[1769023281691,0.00405221,2932.4,2930.3,3.64448298]
[1769023281692,3.70796825,2932.3,2930.3,3.64448298]
[1769023283289,3.70796825,2932.3,2930.3,0.00365632]
[1769023283491,3.70796825,2931.8,2930.3,0.00365632]
[1769023283691,3.87864825,2931.8,2930.3,0.00365632]
[1769023283894,3.87866825,2931.5,2930.3,0.00365632]
[1769023284192,3.70796825,2931.2,2929.3,3.646]
[1769023284402,3.70796825,2931.7,2929.5,3.81164666]
[1769023284693,3.70796825,2931.7,2929.8,3.81162666]
[1769023284694,3.87865825,2931.7,2929.8,3.81162666]
[1769023285290,3.87865825,2931.7,2929.8,3.81444257]
[1769023285494,3.87865825,2931.7,2929.8,0.17361591]
[1769023285685,3.70796825,2931.5,2929.8,0.00281591]
[1769023285890,3.70796825,2931.3,2929.8,0.00281591]
[1769023286993,3.87867825,2931.3,2929.8,0.00281591]
[1769023287693,3.70796825,2931.1,2929.8,0.00281591]
[1769023289494,3.70796825,2931.6,2929.8,0.00281591]
[1769023289688,0.17071,2931.5,2929.8,0.00281591]
[1769023289890,3.70796825,2931.4,2929.8,0.00281591]
[1769023292393,0.17071,2931.5,2929.8,3.64364257]
[1769023292595,3.70796825,2931.9,2929.8,3.64364257]
[1769023292795,3.70796825,2931.9,2929.8,3.81444257]
[1769023293393,3.70796825,2931.9,2929.9,3.81161666]
[1769023293599,0.17067,2932.1,2930.1,3.81160666]
[1769023293900,0.17067,2932.1,2930.3,3.64082666]
[1769023294107,3.71202046,2932.4,2930.5,3.64082666]
[1769023294301,3.71202046,2932.4,2930.5,3.81158666]
[1769023295503,0.00405221,2932.4,2930.7,3.81157666]
[1769023298098,0.00405221,2932.4,2931.1,3.64082666]
[1769023301095,0.00405221,2932.4,2931.1,3.81154666]
[1769023301299,0.00405221,2932.4,2931.3,3.64082666]
[1769023301499,10.368,2933.3,2931.6,3.64082666]
[1769023301703,3.70796825,2933.4,2931.6,6.01282666]
[1769023302405,3.87855825,2933.4,2931.6,6.01282666]
[1769023302707,3.70796825,2933.0,2931.6,2.372]
[1769023303100,3.70796825,2932.8,2931.6,2.372]
[1769023303408,3.87859825,2932.7,2930.9,0.17073]
[1769023303597,3.87861825,2932.5,2930.6,3.64082666]
[1769023303803,3.70796825,2932.3,2930.5,2.372]
[1769023304005,3.70796825,2932.3,2930.5,6.01282666]
[1769023304206,3.87862825,2932.3,2930.5,6.01282666]
[1769023304404,3.87862825,2932.3,2930.0,3.038]
[1769023304405,3.70796825,2931.9,2930.0,3.64082666]
[1769023305203,3.70796825,2931.9,2929.3,40.8]
[1769023305204,3.70796825,2931.5,2929.5,3.64082666]
[1769023305413,3.87866825,2931.5,2929.5,3.64082666]
[1769023305602,3.87866825,2931.5,2929.8,3.48358797]
[1769023307114,3.70796825,2931.5,2929.8,3.48358797]
[1769023308203,3.68445919,2932.0,2929.8,3.48358797]
[1769023308408,3.68445919,2932.0,2929.8,3.65438797]
[1769023309410,3.68445919,2932.0,2930.0,3.48077206]
[1769023310913,3.85513919,2932.0,2930.0,3.48077206]
[1769023312012,3.85514919,2931.8,2930.0,3.48077206]
[1769023312809,3.68445919,2931.6,2929.8,0.00281591]
[1769023313001,3.85518919,2931.0,2929.8,0.00281591]
[1769023313206,0.00311434,2931.0,2929.8,0.00281591]
[1769023313407,0.00311434,2931.0,2929.8,3.48358797]
[1769023317318,0.00311434,2931.0,2929.8,0.00281591]
[1769023318911,0.00311434,2931.0,2929.8,3.66521102]
[1769023319812,0.00311434,2931.0,2929.8,0.00281591]
[1769023320209,3.56999043,2931.0,2929.8,0.00281591]
[1769023320416,3.56999043,2931.0,2928.8,3.66239511]
[1769023320417,3.56687609,2930.7,2928.8,3.66239511]
[1769023320617,3.56687609,2930.7,2928.5,3.83326511]
[1769023321411,3.56687609,2930.0,2928.5,0.00258658]
[1769023322120,3.56687609,2930.5,2928.5,3.66498169]
[1769023322314,3.73763609,2930.5,2928.5,3.66498169]
[1769023323213,3.56687609,2930.5,2928.6,0.17087]
[1769023323414,3.74072043,2931.0,2928.7,3.66239511]
[1769023324216,3.56687609,2930.6,2928.7,3.66239511]
[1769023324517,3.56687609,2930.4,2928.5,0.00258658]
[1769023324914,3.56687609,2930.4,2928.5,3.66498169]
[1769023326114,3.56687609,2930.4,2928.5,3.83585169]
[1769023326316,3.56687609,2930.9,2928.7,3.83325511]
[1769023326821,3.73761609,2930.9,2928.7,3.83325511]
[1769023327416,3.73761609,2930.9,2928.9,3.66239511]
[1769023329819,3.73763609,2930.6,2928.9,3.66239511]
[1769023330020,3.56687609,2930.4,2928.5,0.00258658]
[1769023330320,3.73764609,2930.4,2928.5,3.66498169]
[1769023331517,0.17078,2930.1,2928.5,0.00258658]
[1769023332417,3.73767609,2929.9,2928.5,0.00258658]
[1769023333415,3.56687609,2929.9,2928.5,0.00258658]
[1769023333616,3.73764609,2930.4,2928.5,3.66498169]
[1769023333820,3.73765609,2930.2,2928.5,0.00258658]
[1769023335217,3.56687609,2930.7,2928.5,3.83586169]
[1769023335419,0.17075,2930.6,2928.6,3.66239511]
[1769023335821,0.17075,2930.6,2928.6,3.83326511]
[1769023336022,0.17075,2930.6,2928.6,6.20526511]
[1769023336224,0.00311434,2931.0,2929.0,3.44377752]
[1769023336524,3.4360128,2931.0,2929.0,3.44377752]
[1769023337033,3.6067428,2931.0,2929.0,3.44377752]
[1769023338629,3.6067428,2931.0,2929.0,3.61462752]
[1769023338829,0.00311434,2931.0,2929.6,3.61458752]
[1769023339533,0.00311434,2931.0,2929.6,3.44377752]
[1769023340126,0.00311434,2931.0,2929.8,3.44377752]
[1769023340829,0.00311434,2931.0,2930.0,3.44377752]
[1769023341033,3.60353846,2932.5,2930.3,3.44377752]
[1769023341329,4.59522711,2932.4,2930.3,3.44377752]
[1769023341532,3.60354846,2932.4,2930.3,3.44377752]
[1769023342033,3.60757696,2932.4,2930.3,3.44377752]
[1769023342233,3.60757696,2932.4,2930.5,3.61453752]
[1769023342436,3.43692696,2932.4,2930.5,3.61453752]
[1769023342627,0.0040285,2932.4,2930.7,3.61451752]
[1769023342822,0.0040285,2932.4,2930.7,3.61839794]
[1769023344937,0.0040285,2932.4,2930.7,3.44765794]
[1769023346934,0.0040285,2932.4,2930.8,3.44377752]
[1769023347531,0.0040285,2932.4,2931.3,0.17071]
[1769023347837,0.0040285,2932.4,2931.3,3.61448752]
[1769023348038,3.60346846,2933.7,2931.4,3.61448752]
[1769023348234,3.60346846,2933.7,2931.5,3.61447752]
[1769023348737,3.60346846,2933.7,2931.7,3.44377752]
[1769023348931,3.60638791,2933.7,2931.7,3.44377752]
[1769023350240,0.17059,2933.4,2931.7,3.44377752]
[1769023350432,3.43289846,2933.1,2931.3,0.17071]
[1769023350637,3.43289846,2933.6,2931.5,3.44377752]
[1769023350937,3.43289846,2933.6,2931.5,3.61447752]
[1769023351737,3.43289846,2933.6,2931.7,3.44377752]
[1769023352632,3.60347846,2933.6,2931.7,3.44377752]
[1769023354838,3.60347846,2933.6,2931.7,3.61446752]
[1769023356337,3.60347846,2933.6,2931.8,0.17068]
[1769023356537,3.60347846,2933.6,2931.9,3.44377752]
[1769023357644,0.17058,2933.5,2931.9,3.44377752]
[1769023357849,0.17061,2933.1,2931.3,3.44377752]
[1769023358146,3.60347846,2933.6,2931.5,3.44377752]
[1769023358338,3.60347846,2933.6,2931.5,3.61447752]
[1769023358538,3.60348846,2933.5,2931.5,3.61447752]
[1769023361343,3.60348846,2933.4,2931.5,3.61447752]
[1769023361739,0.1706,2933.3,2931.5,3.61447752]
[1769023361935,3.43289846,2933.1,2931.5,3.44377752]
[1769023362140,3.60350846,2933.1,2931.5,3.44377752]
[1769023362746,3.60350846,2933.1,2931.5,5.81577752]
[1769023363047,3.43289846,2933.6,2931.6,3.44377752]
[1769023363544,3.60349846,2933.3,2931.6,3.44377752]
[1769023365946,3.60349846,2933.3,2931.6,3.61446752]
[1769023366448,0.00291945,2933.7,2931.9,3.93761146]
[1769023366638,0.00291945,2933.7,2932.2,3.76694146]
[1769023366838,0.00291945,2933.7,2932.4,3.93759146]
[1769023367039,0.00291945,2933.7,2932.6,3.93757146]
[1769023367244,0.1705,2935.0,2933.0,3.76694146]
[1769023367446,3.64676543,2935.1,2933.3,3.76694146]
[1769023367749,4.08877347,2935.6,2933.6,3.93752146]
[1769023367950,3.91831347,2935.6,2933.8,3.76694146]
[1769023368251,3.92080981,2935.6,2933.8,3.77110005]
[1769023368451,3.64926177,2935.6,2933.8,3.77110005]
[1769023368852,0.17047,2935.5,2933.8,3.77110005]
[1769023370051,3.81723543,2935.5,2933.8,3.77110005]
[1769023370446,0.00249634,2935.6,2933.8,3.77110005]
[1769023370447,3.81725543,2935.2,2933.8,0.00415859]
[1769023371253,0.00249634,2935.6,2933.8,0.00415859]
[1769023371550,0.00249634,2935.6,2933.8,3.77110005]
[1769023371852,3.81723543,2935.5,2933.8,3.77110005]
[1769023373254,3.81723543,2935.5,2933.8,0.00415859]
[1769023373853,3.81723543,2935.5,2933.8,3.77110005]
[1769023376856,3.81724543,2935.3,2933.8,0.00415859]
[1769023377355,0.17048,2935.3,2933.8,0.00415859]
[1769023378656,3.81724543,2935.3,2933.8,0.00415859]
[1769023379951,0.00249634,2935.6,2933.8,0.00415859]
[1769023379952,3.42316254,2935.1,2933.8,0.00415859]
[1769023380749,3.59365254,2935.1,2933.8,0.00415859]
[1769023381061,3.59365254,2935.1,2932.8,40.8]
[1769023381062,3.59368254,2934.7,2932.7,3.40836887]
[1769023381362,3.59368254,2934.7,2932.7,3.57899887]
[1769023381952,3.59368254,2934.7,2932.7,3.58243084]
[1769023382155,3.42316254,2934.5,2932.7,3.58243084]
[1769023382657,3.59369254,2934.5,2932.7,3.58243084]
[1769023382953,3.59369254,2934.5,2932.7,0.17406197]
[1769023383153,3.42316254,2934.3,2932.7,0.00343197]
[1769023383456,3.42316254,2934.0,2931.5,3.57906887]
[1769023383653,3.42316254,2933.7,2931.5,3.57906887]
[1769023383849,3.42316254,2934.4,2931.8,3.57904887]
[1769023384056,3.42316254,2934.2,2931.8,3.40836887]
[1769023384249,3.42316254,2934.2,2931.9,0.17067]
[1769023384461,3.42316254,2934.2,2932.2,3.40836887]
[1769023384658,3.42316254,2934.2,2932.2,3.57902887]
[1769023386960,3.42316254,2934.0,2932.2,3.40836887]
[1769023389361,3.59373254,2933.8,2931.9,0.00289198]
[1769023390065,3.42316254,2933.6,2931.9,0.00289198]
[1769023390355,3.42316254,2934.1,2931.9,3.58194085]
[1769023390560,3.42316254,2933.9,2931.9,3.58194085]
[1769023391663,3.59374254,2933.7,2931.9,3.41126085]
[1769023391966,3.59374254,2933.7,2931.9,0.00289198]
[1769023393260,3.59374254,2933.7,2931.9,3.41126085]
[1769023395157,3.59374254,2933.7,2932.0,2.372]
[1769023396556,3.64593948,2933.5,2932.0,2.372]
[1769023396757,3.64884899,2933.5,2932.0,2.372]
[1769023400868,3.64884899,2933.5,2932.1,2.372]
[1769023402374,3.81943899,2933.5,2932.1,2.372]
[1769023406783,3.81943899,2933.5,2932.0,2.372]
[1769023406984,3.81943899,2933.5,2932.0,5.77944839]
[1769023408367,3.81943899,2933.5,2932.0,2.372]
[1769023411874,3.81652948,2933.4,2932.0,2.372]
[1769023412973,3.64593948,2933.1,2931.9,0.00289198]
[1769023415079,3.64884899,2933.5,2932.0,3.40744839]
[1769023415282,0.00290951,2933.5,2932.0,3.40744839]
[1769023416473,0.00290951,2933.5,2932.1,0.17067]
[1769023416685,0.00290951,2933.5,2932.2,3.40744839]
[1769023418982,3.64884899,2933.5,2932.0,4.23881605]
[1769023419485,3.64884899,2933.5,2931.9,2.37489198]
[1769023419782,3.64884899,2933.5,2931.9,5.78234037]
[1769023420171,3.64884899,2933.5,2932.0,5.77944839]
[1769023420172,0.00290951,2933.5,2932.0,5.77944839]
[1769023420378,0.00290951,2933.5,2932.3,3.40744839]
[1769023420878,3.64593948,2934.3,2932.6,3.57807839]
[1769023421575,3.64593948,2934.3,2932.8,3.40744839]
[1769023421780,12.8120508,2935.2,2933.0,3.40744839]
[1769023421781,3.64593948,2934.8,2933.0,3.40744839]
[1769023421980,0.00297374,2934.3,2933.0,3.40744839]
[1769023422579,3.64891322,2934.3,2932.5,3.40744839]
[1769023423874,0.00297374,2934.3,2932.9,3.40744839]
[1769023424675,0.00297374,2934.3,2933.1,3.57804839]
[1769023427277,0.00297374,2934.3,2933.2,2.372]
[1769023427472,0.00297374,2934.3,2933.3,2.372]
[1769023431791,3.48128184,2934.3,2932.7,3.84333178]
[1769023432390,3.48128184,2934.3,2931.9,40.80289198]
[1769023432391,3.65182184,2934.3,2932.2,3.84336178]
[1769023433891,3.65182184,2934.3,2932.4,3.67270178]
[1769023434586,3.4783081,2934.1,2932.4,3.67270178]
[1769023434794,3.4783081,2933.8,2932.0,3.584]
[1769023435182,3.4783081,2933.8,2931.9,3.67559376]
[1769023435384,3.6488881,2933.6,2931.9,3.67559376]
[1769023436081,3.4783081,2933.6,2931.9,3.67559376]
[1769023439596,0.00297374,2934.3,2932.6,3.50622355]
[1769023440390,0.00297374,2934.3,2932.6,3.67686355]
[1769023440889,0.00297374,2934.3,2932.9,0.17062]
[1769023441094,3.61546346,2935.1,2933.5,3.50622355]
[1769023441393,3.78592346,2935.6,2933.5,3.50622355]
[1769023441788,3.78592346,2935.6,2933.5,3.67680355]
[1769023441983,0.00974933,2935.8,2933.7,3.67679355]
[1769023442188,0.01174345,2935.7,2933.7,3.50622355]
[1769023442384,0.01174345,2935.7,2934.0,3.50622355]
[1769023442593,0.01174345,2935.7,2934.0,3.50949498]
[1769023445696,0.01174345,2935.7,2934.1,3.67677355]
[1769023450495,0.01174345,2935.7,2934.8,3.50622355]
[1769023450696,0.01174345,2935.7,2934.3,3.50622355]
[1769023451003,3.62720691,2935.7,2934.0,0.00327143]
[1769023451999,3.61546346,2935.2,2934.0,0.00327143]
[1769023452201,3.78596346,2935.0,2933.0,0.17061]
[1769023452399,3.61546346,2934.8,2932.8,3.50622355]
[1769023452596,3.61546346,2934.6,2932.8,3.50622355]
[1769023452802,3.78598346,2934.6,2932.8,3.50622355]
[1769023453302,3.78598346,2934.6,2932.8,3.50993042]
[1769023457809,3.66892753,2935.1,2932.8,3.50993042]
[1769023458009,3.66892753,2935.1,2933.0,3.40092635]
[1769023458196,3.66892753,2934.9,2933.0,3.40092635]
[1769023458706,0.17048,2935.4,2933.4,3.40092635]
[1769023458903,3.83940753,2935.4,2933.4,3.40092635]
[1769023459608,3.83940753,2935.4,2933.4,3.57151635]
[1769023460711,0.01174345,2935.7,2933.6,3.57150635]
[1769023460913,3.68067098,2935.7,2933.8,3.40092635]
[1769023461209,3.85113098,2935.7,2933.8,3.40092635]
[1769023461612,3.66892753,2935.5,2933.8,3.40092635]
[1769023461812,3.83939753,2935.5,2933.8,3.40092635]
[1769023462610,3.83940753,2935.3,2933.3,3.40092635]
[1769023462817,3.66892753,2935.1,2933.3,5.77292635]
[1769023463020,3.66892753,2935.1,2933.3,3.40092635]
[1769023464117,3.83941753,2935.1,2933.3,3.40092635]
[1769023464319,3.83941753,2935.1,2933.3,3.57152635]
[1769023464517,3.66892753,2935.1,2933.3,3.57152635]
[1769023464714,3.66892753,2935.1,2933.5,3.40092635]
[1769023464915,0.17047,2935.5,2933.5,3.40092635]
[1769023465117,3.83940753,2935.4,2933.5,3.40092635]
[1769023467113,3.83940753,2935.4,2933.7,3.40092635]
[1769023467321,0.17048,2935.4,2933.7,3.40092635]
[1769023467620,0.01174345,2935.7,2933.9,3.40092635]
[1769023467814,0.01174345,2935.7,2934.0,0.17055]
[1769023468019,0.01174345,2935.7,2934.1,5.77292635]
[1769023468219,0.01174345,2935.7,2934.2,3.40092635]
[1769023468415,0.01174345,2935.7,2934.4,3.57145635]
[1769023470224,0.01174345,2935.7,2934.5,0.17053]
[1769023470525,0.01174345,2935.7,2934.6,3.40092635]
[1769023471316,0.17041,2936.5,2934.1,2.372]
[1769023471317,3.66892753,2936.4,2934.8,3.40092635]
[1769023471922,0.17041,2936.5,2934.8,3.40092635]
[1769023472120,3.9408063,2936.8,2934.8,3.57143635]
[1769023472326,3.67301899,2936.8,2935.0,3.57142635]
[1769023472527,3.67301899,2936.8,2935.0,3.57492895]
[1769023474219,3.67301899,2936.8,2935.0,0.0035026]
[1769023474931,0.00409146,2936.8,2935.0,3.40442895]
[1769023475829,3.66892753,2938.3,2936.0,3.40092635]
[1769023476125,3.83927753,2937.6,2935.7,3.40092635]
[1769023476333,5.56392753,2938.2,2935.9,3.40092635]
[1769023476530,3.66892753,2938.2,2935.9,3.40092635]
[1769023476729,3.66892753,2938.2,2936.3,3.40092635]